Workbook

Sheet Supply Costs
B1: Ray’s Music Supplies and Costs
E2: =NOW() -> 2009-09-07T16:46:52.400
B3: Instruments / Parts
B4: Item | C4: From | D4: Account | E4: Cost-to door
B5: Guitar - WMS | C5: Portland | D5: Brady and Family | E5: 485 | F5: =E5 -> 485
B6: Guitar - Washburn | C6: Aaron | E6: 150 | F6: 150
B7: StingRay Bass Ernie Ball | C7: Ebay | D7: deal 1647 LA Studio | E7: 211 | F7: 211
E8: 0 | F8: 0
B9: Guitar Stands | C9: Ebay | D9: SLUKE | E9: 28 | F9: 28
B10: Saddles | C10: Mark's Guitar Shop | E10: 6.85 | F10: 6.85
D11: Total Instruments | E11: =F11 -> 880.85 | F11: =SUM(F5:F10) -> 880.85
B12: Studio Equipment
B13: M-Audio IO | C13: Ebay - AudioPhox | D13: Plus Pro-Tools | E13: 1185 | F13: =E13 -> 1185
B14: Pro Tools Manual | C14: Digidesign | E14: 44.67 | F14: 44.67
B15: MRS 802 | C15: Ebay | D15: Michael Shernon | E15: 575.08 | F15: 575.08
B16: C-1 Mike, Stand | F16: 0
B17: Monitors | C17: Ebay | D17: Scott Katz | E17: 87.95 | F17: 87.95
B18: Stereo, Spkr, Cabinet | C18: 2nd Hand 5 Mile | D18: 5 mile | E18: 25 | F18: 25
B19: Computer | C19: Ebay | D19: ultracache | E19: 101.91 | F19: 101.91
B20: PCI Firewire Card | C20: dakshcomputers | D20: 3 port TI Chipset | E20: 38.95 | F20: 38.95
B21: FireWire Card | D21: 8- port and USB VIO Chipset | E21: 12.44 | F21: 12.44
B22: Attenuator / Vol | C22: Ebay | D22: Vidsonix qty 2 | E22: 48.85 | F22: 48.85
B23: Parts | C23: Radio Shack | D23: 2 Enclosures 5x2x2 | E23: 3.69 | F23: =SUM(E23:E32) -> 37.54
E24: 3.69
D25: 2 RCA 4 gang board | E25: 4.59
E26: 4.59
D27: 4 1/4 jack panel mount | E27: 2.99
E28: 2.99
E29: 2.99
E30: 2.99
D31: Tax | E31: 2.97
D32: Shipping | E32: 6.05
B33: Parts | C33: palmpdb | D33: 6 RCA F to 1/4 M Adaptor | E33: 3.33 | F33: =SUM(E33:E35) -> 13.64
C34: palmpdb | D34: 6 RCA F to 1/4 M Adaptor | E34: 3.33
C35: palmpdb | D35: S & H | E35: 6.98
B36: Parts | C36: Advanced Gadget | D36: 4 Speaker Pots 15 w | E36: 8.99 | F36: =SUM(E36:E39) -> 35.94
C37: Advanced Gadget | D37: S & H | E37: 9.99
C38: Advanced Gadget | D38: 2 Speaker Pots 15 w | E38: 7.98
C39: Advanced Gadget | D39: S & H | E39: 8.98
B40: 2- Gibson 500k Pots | C40: Ebay | D40: John Lewman | E40: 10.47
B41: Hosa 1/4 Patch Bay | C41: expoavstore | D41: Rack Mount | E41: 18 | F41: =SUM(E41:E42 ) -> 30
D42: S & H | E42: 12
B43: Omega | C43: Mark Smith | D43: Loaned | E43: 0 | F43: =E43 -> 0
B44: Sound Card | C44: Ebay | D44: Scott Katz | E44: 81.9 | F44: 81.9
B45: Switch Box | C45: Ebay | D45: Koral Efecan | E45: 14.49 | F45: 14.49
B46: HDD 320 Gb USB | C46: Ebay | D46: Auction IT LLC | E46: 97.7 | F46: 97.7
B47: SPL1000 Meter | C47: Ebay | D47: decentdeals | E47: 32.55 | F47: 32.55
B48: Audio Test CD | C48: Ebay | D48: artsncrafts | E48: 14.97 | F48: 14.97
B49: Presonus Mon Stn | C49: Ebay | D49: proaudiomgr | E49: 298 | F49: 298
B50: ART Pb4 Pwr Cond | C50: Ebay | D50: proaudiomgr | E50: 0 | F50: 0
B51: Studio Desk | C51: Ebay | D51: goaskdavid | E51: 239.35 | F51: 239.35
B52: HDD 300 Gb FW | C52: Ebay | D52: rplumpe digitalfoundry | E52: 74.62 | F52: 74.62
B53: SIIG FW Card 4 port | C53: Ebay | D53: dakshcomputer | E53: 38.95 | F53: 38.95
B54: DVD/RW Poweredge | C54: Ebay | D54: hoctcompute | E54: 64.85 | F54: 64.85
B55: Behringer 1622 Mixer | C55: Ebay | D55: audiosavings | E55: 184.95 | F55: 184.95
B56: 10 port USB Hub | C56: Ebay | D56: Keon Arjmandi | E56: 24.99 | F56: 24.99
B57: Sony CD Walkman | C57: Ebay | D57: Bargain-88 | E57: 34 | F57: 34
B58: CF Card Reader | C58: Ebay | D58: Accstation | E58: 7.45 | F58: 7.45
B59: 2 - 4 Gb CF Cards | C59: Ebay | D59: dz-online | E59: 43.98 | F59: 43.98
B60: Apa-CF5-H2 | C60: Ameri-Rack | D60: Amerirack | E60: 17.45 | F60: 17.45
D62: Total Equip | E62: =F62 -> 3507.17 | F62: =SUM(F13:F60) -> 3507.17
B63: Cables
B64: 13.2’ Snake Ts-Ts | C64: Ebay | D64: Pro Gear Warehouse | E64: 37.26 | F64: =E64 -> 37.26
B65: 3.3’ Snake 8 ch Ts-Ts | C65: Ebay | D65: Pro Gear Warehouse | E65: 25.85 | F65: 25.85
B66: 6.6’ Snake Rca-Rca | C66: Ebay | D66: Randomosity Record | E66: 9.5 | F66: 9.5
B67: 3’ Snake Xlr-Trs M | C67: Ebay | D67: Seismic Audio Speakers Inc. | E67: 19 | F67: 19
B68: 5’ Snake Rca-Rca | C68: Ebay | E68: 44.99 | F68: 44.99
B69: RCA Cables, 6’ | C69: Fred Meyers | E69: 5 | F69: 5
B70: RCA Cables, 6’ | C70: Fred Meyers | E70: 5 | F70: 5
B71: RCA Cables, 6’ | C71: Fred Meyers | E71: 5 | F71: 5
B72: RCA Cables, 12’ | C72: Fred Meyers | E72: 10 | F72: 10
B73: 3 - way RCA Cwitch | C73: Ebay | D73: Kefecan | E73: 14.39 | F73: 14.39
B74: RCA Cables, 6’ | C74: Fred Meyers | E74: 10 | F74: 10
B75: 3 - way RCA Cwitch | C75: Ebay | D75: Kefecan | E75: 14.39 | F75: 14.39
B76: 1/4 90Deg Adapter | C76: Ebay- Vidsonix | D76: Vidsonix qty 4 | E76: 18.35 | F76: 18.35
D77: Total Cables | E77: =F77 -> 218.73 | F77: =SUM(F64:F76) -> 218.73
D79: TOTAL ALL | E79: =E11+E62+E77 -> 4606.75

Sheet Production Costs
B1: CD Production
B3: Soul Food | C3: 50 CDs With Matching Labels and Jewel Cases
B4: Item | C4: From | D4: Count | E4: Cost
B5: CD-R | C5: Staples | D5: 50 | E5: 19
B6: Jewel Cases | C6: Staples | D6: 48 | E6: 27
B7: CD Labels | C7: Staples | D7: 50 | E7: 15
B8: Jewel Case Labels | C8: Staples | D8: 50 | E8: 19
B9: Ink Refills - Color | C9: Kit | D9: 2 | E9: 10
B10: Ink Refill- black | C10: Ebay | D10: Saveoninks.com | E10: 10.95
B11: Mailers | C11: Fred Meyers | D11: 12 | E11: 6
B12: Postage each | C12: 1.62 | D12: 13 | E12: =C12*D12 -> 21.06
D13: Total Production | E13: =SUM(E4:E12) -> 128.01
B15: Comfort Food | C15: 40 CDs With Matching Labels and Jewel Cases
B16: Item | C16: From | D16: Count | E16: Cost
B17: CD-R | C17: Tekoa Pharmacy | D17: 50 | E17: 29
B18: Jewel Cases | C18: Staples | D18: 48 | E18: 27
B19: CD Labels | C19: Staples | D19: 50 | E19: 15
B20: Jewel Case Labels | C20: Staples | D20: 50 | E20: 19
B21: Ink Refills - Color | C21: Kit | D21: 2 | E21: 10
B22: Ink Refill- black | C22: Ebay | D22: Saveoninks.com | E22: 10.95
B23: Mailers | C23: Tekoa Post Office | D23: 50 | E23: 19
B24: Postage each | C24: 1.62 | D24: 13 | E24: =C24*D24 -> 21.06
D25: Total Production | E25: =SUM(E16:E24) -> 151.01

Sheet Distribution
B1: Soul Food | D1: 2007-12-01
B2: Sir Paul | C2: Mary Haas | D2: Fiona | E2: Larry Wiston
B3: Danny & Sherry | C3: Anita | D3: Brady | E3: Mark Smith
B4: Jimmy | C4: Linda & Cam | D4: Ian | E4: Angie
B5: Kenny | C5: Shay | D5: Donnal | E5: Ron Sims' Mom | F5: Pastor
B6: Rick | C6: Dave & Linda | D6: Daniel & Kathy | E6: Rennie Weidmann | F6: Bruce & Brenda
B7: Ron has 2 | C7: Paul & Robin | D7: Ruth | E7: Bruce Bains | F7: Clive
B8: Sam | C8: John & Gina | D8: Eunice & Tom | E8: Destiny and Bobby | F8: Jason & Lisa
B9: Bob Williams | C9: Ward has 2 | D9: Grace & Grayson | E9: Mike & Sue(neighbor) | F9: Heidi &
B10: Doug Ponder | C10: Fred & Pat | D10: Tim & Laryssa | E10: Julian | F10: Terry & Alisa
B11: Eddie | C11: Aaron | D11: Mark | E11: Frankie Drummer
B12: Steve | C12: Chris & Kayla | D12: Edna & Joe | E12: Jordan
B13: Ian | D13: Lee
B14: =COUNTIF(B2:B13,">""") -> 12 | C14: =COUNTIF(C2:C13,">""") -> 11 | D14: =COUNTIF(D2:D13,">""") -> 12 | E14: =COUNTIF(E2:E13,">""") -> 11 | F14: =COUNTIF(F2:F13,">""") -> 6
B15: Total | C15: =SUM(B14:F14) -> 52
B17: Comfort Food | D17: 2009-07-09 | G17: To Do
B18: Danny & Sherry | E18: Fiona | F18: Gary & Lynn | G18: Bruce Bains | H18: Eunice and Tom
B19: Sam | C19: Anita | E19: Brady & Kate | F19: Bruce & Brenda | G19: Mark
C20: Linda & Cam | E20: Ian & Brenda | F20: Pastor | G20: Betty Kay was returned
B21: Terry Haney | C21: Shay | E21: Donnal | F21: Jason & Lisa | G21: Uncle Mike and Girls
B22: Fred & Pat | C22: Dave & Linda | D22: Daniel & Kathy | E22: Jesse | F22: Heidi & | G22: Ron Simms
B23: Mary Haas | C23: Paul & Robin | D23: Ruth & Kids | E23: Jordan | F23: Terry & Alisa | G23: Rick
B24: Mark Donges | C24: John & Gina | E24: Elizibeth | F24: Darryl | G24: Sir Paul
B25: Teresa and Mike | C25: Ward | D25: Grace & Grayson | E25: Sam | G25: Mark Smith
B26: Mike Donges | D26: Tim & Laryssa | E26: Julian
B27: Betty Kay | C27: Aaron & Jayleen | E27: Stephen & Paul
C28: Chris Larson | D28: Edna & Joe | E28: Grace Jr.
C29: Kayla Larson
B30: =COUNTIF(B18:B29,">""") -> 9 | C30: =COUNTIF(C18:C29,">""") -> 10 | D30: 5 | E30: =COUNTIF(E18:E29,">""") -> 11 | F30: =COUNTIF(F18:F29,">""") -> 7
B32: Total | C32: =SUM(B30:F30) -> 42
